fUSD/lending_fUSD_20260430
["ID","MTS","AMOUNT","RATE_DAILY","PERIOD"]
[421381150,1777529440000,-289.03217737,0.00030104,14]
[421381149,1777529440000,-2000.0,0.00030053,2]
[421381145,1777529440000,-436.516546,0.000298,7]
[421381154,1777529440000,-240.65,0.00030137,15]
[421381152,1777529440000,-237.5890113,0.00030136,2]
[421381147,1777529440000,-151.0,0.000298,7]
[421381153,1777529440000,-200.0,0.00030137,40]
[421381155,1777529440000,-173.17,0.00030411,120]
[421381156,1777529440000,-160.36,0.00030685,2]
[421381158,1777529440000,-1444.86070115,0.00031002,2]
[421381146,1777529440000,-436.516546,0.000298,7]
[421381168,1777529440000,-1093.85407048,0.00031147,15]
[421381173,1777529440000,-368.21584094,0.000316,2]
[421381169,1777529440000,-721.318,0.00031201,2]
[421381170,1777529440000,-445.41883645,0.00031262,82]
[421381166,1777529440000,-156.0,0.00031126,30]
[421381164,1777529440000,-156.68663229,0.00031126,30]
[421381165,1777529440000,-157.0,0.00031126,30]
[421381167,1777529440000,-182.0,0.00031126,30]
[421381172,1777529440000,-368.21584094,0.000316,2]
[421381162,1777529440000,-151.32,0.000311,7]
[421381161,1777529440000,-155.36,0.000311,7]
[421381159,1777529440000,-150.0,0.00031011,2]
[421381157,1777529440000,-16912.69,0.000307,7]
[421381160,1777529440000,-500.21916237,0.00031033,21]
[421381163,1777529440000,-153.0,0.00031126,30]
[421381250,1777529441000,-1444.86070115,0.00035462,2]
[421381245,1777529441000,-915.83521281,0.00035002,94]
[421381246,1777529441000,-1289.58892491,0.00035099,30]
[421381249,1777529441000,-151.32,0.000354,30]
[421381244,1777529441000,-150.0,0.00035,2]
[421381242,1777529441000,-1500.0,0.00034795,2]
[421381248,1777529441000,-158.86,0.00035205,30]
[421381241,1777529441000,-150.0,0.0003419,2]
[421381243,1777529441000,-16912.69,0.000349,7]
[421381240,1777529441000,-182.0,0.00034126,30]
[421381238,1777529441000,-735.99,0.00033449,120]
[421381247,1777529441000,-182.0,0.00035126,30]
[421381254,1777529441000,-150.0,0.0003547,2]
[421381252,1777529441000,-2166.82925342,0.00035463,2]
[421381255,1777529441000,-155.36,0.000355,30]
[421381251,1777529441000,-991.93373017,0.00035463,2]
[421381262,1777529441000,-152.0,0.00035962,3]
[421381256,1777529441000,-1018.0,0.00035616,120]
[421381258,1777529441000,-150.0,0.00035899,2]
[421381261,1777529441000,-240.0,0.00035915,3]
[421381259,1777529441000,-500.0,0.00035915,3]
[421381257,1777529441000,-162.95647523,0.00035616,2]
[421381260,1777529441000,-500.0,0.00035915,3]
[421381264,1777529441000,-338.96,0.00036342,120]
[421381274,1777529441000,-22340.0574729,0.000371,2]
[421381239,1777529441000,-1344.14970615,0.00034082,30]
[421381268,1777529441000,-215.70311568,0.00036724,120]
[421381253,1777529441000,-150.0,0.0003547,2]
[421381237,1777529441000,-2000.0,0.00033392,2]
[421381218,1777529441000,-280.269442,0.00032877,7]
[421381235,1777529441000,-150.0,0.00033228,2]
[421381275,1777529441000,-151.0,0.000371,7]
[421381207,1777529441000,-280.269442,0.00032877,7]
[421381208,1777529441000,-280.269442,0.00032877,7]
[421381209,1777529441000,-280.269442,0.00032877,7]
[421381206,1777529441000,-280.269442,0.00032877,7]
[421381211,1777529441000,-280.269442,0.00032877,7]
[421381221,1777529441000,-280.269442,0.00032877,7]
[421381222,1777529441000,-280.269442,0.00032877,7]
[421381212,1777529441000,-280.269442,0.00032877,7]
[421381223,1777529441000,-280.269442,0.00032877,7]
[421381210,1777529441000,-280.269442,0.00032877,7]
[421381213,1777529441000,-280.269442,0.00032877,7]
[421381217,1777529441000,-280.269442,0.00032877,7]
[421381236,1777529441000,-1444.86070115,0.00033232,2]
[421381215,1777529441000,-280.269442,0.00032877,7]
[421381219,1777529441000,-280.269442,0.00032877,7]
[421381220,1777529441000,-280.269442,0.00032877,7]
[421381224,1777529441000,-280.269441,0.00032877,7]
[421381228,1777529441000,-151.32,0.000331,30]
[421381227,1777529441000,-150.0,0.00033064,14]
[421381234,1777529441000,-150.0,0.00033147,2]
[421381232,1777529441000,-182.0,0.00033126,30]
[421381233,1777529441000,-852.79670719,0.00033132,88]
[421381226,1777529441000,-338.96,0.00033038,120]
[421381229,1777529441000,-161.0,0.00033126,30]
[421381225,1777529441000,-150.0,0.00033025,14]
[421381230,1777529441000,-166.67038519,0.00033126,30]
[421381231,1777529441000,-157.0,0.00033126,30]
[421381216,1777529441000,-280.269442,0.00032877,7]
[421381265,1777529441000,-500.0,0.00036438,120]
[421381325,1777529441000,-500.0,0.000378,120]
[421381263,1777529441000,-182.0,0.00036126,30]
[421381301,1777529441000,-500.0,0.000378,120]
[421381302,1777529441000,-500.0,0.000378,120]
[421381307,1777529441000,-500.0,0.000378,120]
[421381303,1777529441000,-500.0,0.000378,120]
[421381308,1777529441000,-500.0,0.000378,120]
[421381304,1777529441000,-500.0,0.000378,120]
[421381305,1777529441000,-500.0,0.000378,120]
[421381306,1777529441000,-500.0,0.000378,120]
[421381309,1777529441000,-500.0,0.000378,120]
[421381312,1777529441000,-500.0,0.000378,120]
[421381322,1777529441000,-500.0,0.000378,120]
[421381313,1777529441000,-500.0,0.000378,120]
[421381320,1777529441000,-500.0,0.000378,120]
[421381299,1777529441000,-500.0,0.000378,120]
[421381311,1777529441000,-500.0,0.000378,120]
[421381319,1777529441000,-500.0,0.000378,120]
[421381321,1777529441000,-500.0,0.000378,120]
[421381315,1777529441000,-500.0,0.000378,120]
[421381316,1777529441000,-500.0,0.000378,120]
[421381318,1777529441000,-500.0,0.000378,120]
[421381317,1777529441000,-500.0,0.000378,120]
[421381328,1777529441000,-500.0,0.000378,120]
[421381323,1777529441000,-500.0,0.000378,120]
[421381266,1777529441000,-150.0,0.00036586,7]
[421381327,1777529441000,-500.0,0.000378,120]
[421381330,1777529441000,-500.0,0.000378,120]
[421381329,1777529441000,-500.0,0.000378,120]
[421381324,1777529441000,-502.0,0.000378,120]
[421381314,1777529441000,-500.0,0.000378,120]
[421381310,1777529441000,-500.0,0.000378,120]
[421381326,1777529441000,-500.0,0.000378,120]
[421381296,1777529441000,-500.0,0.000378,120]
[421381300,1777529441000,-500.0,0.000378,120]
[421381267,1777529441000,-16912.69,0.000366,7]
[421381269,1777529441000,-2000.0,0.00036731,2]
[421381270,1777529441000,-735.99,0.00036794,120]
[421381272,1777529441000,-981.98797118,0.00036872,100]
[421381273,1777529441000,-1243.57659104,0.0003708,30]
[421381277,1777529441000,-151.0,0.000371,7]
[421381276,1777529441000,-151.0,0.000371,7]
[421381279,1777529441000,-182.0,0.00037126,30]
[421381278,1777529441000,-1199.20597015,0.00037101,30]
[421381286,1777529441000,-623.64776415,0.00037533,3]
[421381280,1777529441000,-568.31,0.00037288,2]
[421381281,1777529441000,-478.34,0.00037289,2]
[421381282,1777529441000,-151.32,0.000373,30]
[421381271,1777529441000,-233.03766636,0.000368,30]
[421381283,1777529441000,-504.25148011,0.00037367,5]
[421381284,1777529441000,-500.0,0.00037425,120]
[421381297,1777529441000,-500.0,0.000378,120]
[421381293,1777529441000,-500.0,0.000378,120]
[421381294,1777529441000,-500.0,0.000378,120]
[421381291,1777529441000,-234.7381203,0.00037753,120]
[421381292,1777529441000,-500.0,0.00037773,5]
[421381289,1777529441000,-506.0,0.0003771,13]
[421381285,1777529441000,-504.05609939,0.00037533,5]
[421381290,1777529441000,-178.86851726,0.00037745,120]
[421381295,1777529441000,-500.0,0.000378,120]
[421381298,1777529441000,-500.0,0.000378,120]
[421381287,1777529441000,-1444.86070115,0.00037692,2]
[421381288,1777529441000,-150.0,0.00037694,2]
[421381363,1777529442000,-500.0,0.000378,120]
[421381369,1777529442000,-500.0,0.000378,120]
[421381358,1777529442000,-500.0,0.000378,120]
[421381365,1777529442000,-500.0,0.000378,120]
[421381356,1777529442000,-500.0,0.000378,120]
[421381362,1777529442000,-500.0,0.000378,120]
[421381364,1777529442000,-500.0,0.000378,120]
[421381361,1777529442000,-500.0,0.000378,120]
[421381366,1777529442000,-500.0,0.000378,120]
[421381367,1777529442000,-500.0,0.000378,120]
[421381360,1777529442000,-500.0,0.000378,120]
[421381373,1777529442000,-1156.41848616,0.00037993,30]
[421381377,1777529442000,-300.825896,0.00038022,2]
[421381376,1777529442000,-300.825896,0.00038022,2]
[421381371,1777529442000,-207.79758125,0.00037928,47]
[421381368,1777529442000,-500.0,0.000378,120]
[421381370,1777529442000,-500.0,0.000378,120]
[421381375,1777529442000,-300.825896,0.00038022,2]
[421381372,1777529442000,-210.33837446,0.00037993,30]
[421381379,1777529442000,-300.825896,0.00038022,2]
[421381378,1777529442000,-300.825896,0.00038022,2]
[421381380,1777529442000,-300.825896,0.00038022,2]
[421381359,1777529442000,-500.0,0.000378,120]
[421381374,1777529442000,-161.5281372,0.00038,2]
[421381357,1777529442000,-500.0,0.000378,120]
[421381345,1777529442000,-500.0,0.000378,120]
[421381352,1777529442000,-500.0,0.000378,120]
[421381381,1777529442000,-300.825896,0.00038022,2]
[421381334,1777529442000,-500.0,0.000378,120]
[421381336,1777529442000,-500.0,0.000378,120]
[421381335,1777529442000,-500.0,0.000378,120]
[421381332,1777529442000,-500.0,0.000378,120]
[421381333,1777529442000,-500.0,0.000378,120]
[421381331,1777529442000,-500.0,0.000378,120]
[421381340,1777529442000,-500.0,0.000378,120]
[421381344,1777529442000,-500.0,0.000378,120]
[421381348,1777529442000,-500.0,0.000378,120]
[421381342,1777529442000,-500.0,0.000378,120]
[421381341,1777529442000,-500.0,0.000378,120]
[421381346,1777529442000,-500.0,0.000378,120]
[421381339,1777529442000,-500.0,0.000378,120]
[421381337,1777529442000,-500.0,0.000378,120]
[421381338,1777529442000,-500.0,0.000378,120]
[421381343,1777529442000,-500.0,0.000378,120]
[421381347,1777529442000,-500.0,0.000378,120]
[421381350,1777529442000,-500.0,0.000378,120]
[421381353,1777529442000,-500.0,0.000378,120]
[421381349,1777529442000,-173.0,0.000378,120]
[421381354,1777529442000,-500.0,0.000378,120]
[421381351,1777529442000,-500.0,0.000378,120]
[421381355,1777529442000,-500.0,0.000378,120]
[421381385,1777529442000,-300.825896,0.00038022,2]
[421381405,1777529442000,-1000.0,0.00038321,5]
[421381387,1777529442000,-308.58040349,0.00038022,2]
[421381413,1777529442000,-500.0,0.00038603,120]
[421381414,1777529442000,-562.1851817,0.00038604,2]
[421381415,1777529442000,-249.54690258,0.00038668,120]
[421381416,1777529442000,-1048.14072967,0.00038743,106]
[421381417,1777529442000,-2115.42064399,0.000388,2]
[421381419,1777529442000,-2500.0,0.000388,60]
[421381421,1777529442000,-200.27600141,0.0003891,30]
[421381420,1777529442000,-1500.0,0.00038868,5]
[421381418,1777529442000,-2500.0,0.000388,60]
[421381423,1777529442000,-1000.0,0.00039,120]
[421381422,1777529442000,-249.54690258,0.00038942,120]
[421381425,1777529442000,-151.32,0.00039,30]
[421381429,1777529442000,-2500.0,0.000391,60]
[421381427,1777529442000,-2704.5106841,0.00039053,2]
[421381424,1777529442000,-1531.0,0.00039,60]
[421381431,1777529442000,-1319.7449813,0.00039119,2]
[421381426,1777529442000,-16892.9590421,0.00039053,2]
[421381428,1777529442000,-2500.0,0.000391,60]
[421381430,1777529442000,-1319.7449812,0.00039119,2]
[421381432,1777529442000,-1155.0460571,0.00039122,2]
[421381434,1777529442000,-2500.0,0.000394,60]
[421381435,1777529442000,-2500.0,0.000394,60]
[421381436,1777529442000,-1000.0,0.00039416,5]
[421381412,1777529442000,-2500.0,0.000385,60]
[421381411,1777529442000,-2500.0,0.000385,60]
[421381382,1777529442000,-300.825896,0.00038022,2]
[421381409,1777529442000,-215.84858348,0.00038394,120]
[421381407,1777529442000,-249.54690258,0.00038394,120]
[421381389,1777529442000,-300.0,0.00038022,2]
[421381384,1777529442000,-300.825896,0.00038022,2]
[421381383,1777529442000,-300.825896,0.00038022,2]
[421381386,1777529442000,-396.2822768,0.00038022,2]
[421381388,1777529442000,-309.87901895,0.00038022,2]
[421381399,1777529442000,-16912.69,0.000382,7]
[421381400,1777529442000,-298.0,0.00038287,2]
[421381392,1777529442000,-150.0,0.00038034,30]
[421381394,1777529442000,-3174.33,0.00038034,30]
[421381391,1777529442000,-300.17033816,0.00038022,2]
[421381397,1777529442000,-1000.0,0.000382,120]
[421381390,1777529442000,-419.92437429,0.00038022,2]
[421381396,1777529442000,-570.55,0.00038111,2]
[421381393,1777529442000,-397.25,0.00038034,30]
[421381398,1777529442000,-2500.0,0.000382,60]
[421381402,1777529442000,-295.0,0.00038287,2]
[421381410,1777529442000,-1000.0,0.000385,120]
[421381403,1777529442000,-230.0,0.00038311,2]
[421381401,1777529442000,-150.0,0.00038287,2]
[421381433,1777529442000,-249.54690258,0.00039216,120]
[421381406,1777529442000,-230.77553189,0.00038356,30]
[421381404,1777529442000,-169.0,0.00038311,2]
[421381408,1777529442000,-249.54690255,0.00038394,120]
[421381395,1777529442000,-655.59,0.00038111,2]
[421381469,1777529443000,-300.0,0.00039726,120]
[421381474,1777529443000,-300.0,0.00039726,120]
[421381472,1777529443000,-300.0,0.00039726,120]
[421381476,1777529443000,-300.0,0.00039726,120]
[421381467,1777529443000,-300.0,0.00039726,120]
[421381473,1777529443000,-300.0,0.00039726,120]
[421381470,1777529443000,-300.0,0.00039726,120]
[421381468,1777529443000,-300.0,0.00039726,120]
[421381471,1777529443000,-300.0,0.00039726,120]
[421381475,1777529443000,-300.0,0.00039726,120]
[421381478,1777529443000,-300.0,0.00039726,120]
[421381489,1777529443000,-25000.0,0.0003994,15]
[421381488,1777529443000,-167.0,0.00039932,2]
[421381487,1777529443000,-1444.86070115,0.00039922,2]
[421381486,1777529443000,-249.54690258,0.00039764,120]
[421381479,1777529443000,-300.0,0.00039726,120]
[421381484,1777529443000,-180.29311742,0.0003975,120]
[421381482,1777529443000,-200.908576,0.00039726,120]
[421381485,1777529443000,-45800.0,0.0003976,30]
[421381481,1777529443000,-300.0,0.00039726,120]
[421381483,1777529443000,-507.70617016,0.00039726,10]
[421381477,1777529443000,-300.0,0.00039726,120]
[421381466,1777529443000,-300.0,0.00039726,120]
[421381480,1777529443000,-300.0,0.00039726,120]
[421381465,1777529443000,-300.0,0.00039726,120]
[421381451,1777529443000,-300.0,0.00039726,120]
[421381460,1777529443000,-300.0,0.00039726,120]
[421381492,1777529443000,-8177.41415226,0.0003994,15]
[421381442,1777529443000,-185.93470888,0.00039601,2]
[421381439,1777529443000,-150.0,0.000395,120]
[421381438,1777529443000,-150.0,0.000395,120]
[421381441,1777529443000,-16912.69,0.000396,7]
[421381437,1777529443000,-249.54690258,0.0003949,120]
[421381440,1777529443000,-150.0,0.00039579,2]
[421381444,1777529443000,-338.96,0.00039645,120]
[421381446,1777529443000,-500.0,0.00039671,120]
[421381448,1777529443000,-2500.0,0.000397,60]
[421381447,1777529443000,-2500.0,0.000397,60]
[421381464,1777529443000,-300.0,0.00039726,120]
[421381449,1777529443000,-300.0,0.00039726,120]
[421381452,1777529443000,-300.0,0.00039726,120]
[421381453,1777529443000,-300.0,0.00039726,120]
[421381455,1777529443000,-300.0,0.00039726,120]
[421381454,1777529443000,-300.0,0.00039726,120]
[421381457,1777529443000,-300.0,0.00039726,120]
[421381456,1777529443000,-300.0,0.00039726,120]
[421381458,1777529443000,-300.0,0.00039726,120]
[421381459,1777529443000,-300.0,0.00039726,120]
[421381462,1777529443000,-300.0,0.00039726,120]
[421381463,1777529443000,-300.0,0.00039726,120]
[421381461,1777529443000,-300.0,0.00039726,120]
[421381450,1777529443000,-300.0,0.00039726,120]
[421381495,1777529443000,-619.12,0.00039975,120]
[421381491,1777529443000,-25000.0,0.0003994,15]
[421381494,1777529443000,-175.25693969,0.00039973,5]
[421381526,1777529443000,-735.99,0.00040139,120]
[421381529,1777529443000,-2000.0,0.0004019,90]
[421381528,1777529443000,-2500.25,0.00040175,120]
[421381530,1777529443000,-151.32,0.000402,30]
[421381524,1777529443000,-199.72947718,0.00040095,120]
[421381523,1777529443000,-150.0,0.00040095,120]
[421381525,1777529443000,-158.8,0.0004011,90]
[421381531,1777529443000,-619.12,0.00040275,120]
[421381527,1777529443000,-619.12,0.00040175,120]
[421381543,1777529443000,-16897.2,0.000404,120]
[421381533,1777529443000,-500.0,0.00040275,45]
[421381536,1777529443000,-2500.0,0.000403,120]
[421381534,1777529443000,-500.0,0.00040275,45]
[421381537,1777529443000,-2500.0,0.000403,120]
[421381535,1777529443000,-200.0,0.00040299,31]
[421381539,1777529443000,-619.12,0.00040375,120]
[421381540,1777529443000,-2500.25,0.00040375,120]
[421381541,1777529443000,-200.0,0.00040399,31]
[421381538,1777529443000,-249.54690258,0.00040312,120]
[421381542,1777529443000,-68000.0,0.000404,30]
[421381545,1777529443000,-619.12,0.00040475,120]
[421381544,1777529443000,-150.0,0.00040421,120]
[421381546,1777529443000,-2500.25,0.00040475,120]
[421381547,1777529443000,-500.0,0.000405,45]
[421381497,1777529443000,-732.7371,0.00039999,30]
[421381522,1777529443000,-200.0,0.00040092,42]
[421381521,1777529443000,-200.0,0.00040091,42]
[421381532,1777529443000,-2500.25,0.00040275,120]
[421381519,1777529443000,-619.12,0.00040075,120]
[421381498,1777529443000,-700.0,0.0004,120]
[421381517,1777529443000,-249.54690258,0.00040038,120]
[421381490,1777529443000,-25000.0,0.0003994,15]
[421381493,1777529443000,-500.32951752,0.00039973,5]
[421381499,1777529443000,-1008.6790091,0.0004,120]
[421381496,1777529443000,-2500.25,0.00039975,120]
[421381501,1777529443000,-40000.0,0.0004,120]
[421381502,1777529443000,-40000.0,0.0004,30]
[421381506,1777529443000,-500.0,0.0004,45]
[421381507,1777529443000,-500.0,0.0004,45]
[421381504,1777529443000,-170.0,0.0004,4]
[421381503,1777529443000,-6374.48451585,0.0004,120]
[421381500,1777529443000,-977.729855,0.0004,120]
[421381516,1777529443000,-641.87497042,0.0004,30]
[421381520,1777529443000,-2500.25,0.00040075,120]
[421381505,1777529443000,-500.0,0.0004,45]
[421381514,1777529443000,-44652.50860067,0.0004,120]
[421381515,1777529443000,-1010.0,0.0004,30]
[421381513,1777529443000,-2500.0,0.0004,120]
[421381518,1777529443000,-2000.0,0.0004007,2]
[421381511,1777529443000,-500.0,0.0004,45]
[421381509,1777529443000,-500.0,0.0004,45]
[421381508,1777529443000,-500.0,0.0004,45]
[421381510,1777529443000,-500.0,0.0004,45]
[421381512,1777529443000,-2500.0,0.0004,120]
[421381581,1777529444000,-201.93286099,0.00040899,30]
[421381585,1777529444000,-2500.0,0.000409,120]
[421381586,1777529444000,-800.0,0.000409,14]
[421381589,1777529444000,-2500.25,0.00040975,120]
[421381583,1777529444000,-1075.369,0.00040899,30]
[421381578,1777529444000,-9211.34798985,0.00040899,30]
[421381584,1777529444000,-1000.0,0.000409,120]
[421381587,1777529444000,-188966.0,0.0004095,60]
[421381582,1777529444000,-500.0,0.00040899,30]
[421381580,1777529444000,-151.0,0.00040899,30]
[421381588,1777529444000,-619.12,0.00040975,120]
[421381579,1777529444000,-151.0,0.00040899,30]
[421381591,1777529444000,-2000.0,0.0004099,120]
[421381600,1777529444000,-500.0,0.00041,45]
[421381601,1777529444000,-500.0,0.00041,45]
[421381590,1777529444000,-471.92053333,0.00040983,2]
[421381594,1777529444000,-500.0,0.00041,45]
[421381595,1777529444000,-500.0,0.00041,45]
[421381592,1777529444000,-2000.0,0.0004099,90]
[421381593,1777529444000,-2000.0,0.00040999,90]
[421381597,1777529444000,-500.0,0.00041,45]
[421381596,1777529444000,-500.0,0.00041,45]
[421381598,1777529444000,-500.0,0.00041,45]
[421381599,1777529444000,-500.0,0.00041,45]
[421381604,1777529444000,-5144.06289992,0.00041,30]
[421381572,1777529444000,-619.12,0.00040875,120]
[421381602,1777529444000,-500.0,0.00041,45]
[421381574,1777529444000,-471.92053333,0.00040883,2]
[421381549,1777529444000,-500.0,0.000405,45]
[421381577,1777529444000,-1377.42282659,0.00040899,30]
[421381614,1777529444000,-2450.0,0.00041,30]
[421381555,1777529444000,-2500.25,0.00040575,120]
[421381551,1777529444000,-500.0,0.000405,45]
[421381552,1777529444000,-500.0,0.000405,45]
[421381548,1777529444000,-500.0,0.000405,45]
[421381554,1777529444000,-619.12,0.00040575,120]
[421381550,1777529444000,-500.0,0.000405,45]
[421381553,1777529444000,-500.0,0.000405,45]
[421381557,1777529444000,-200.0,0.00040599,45]
[421381556,1777529444000,-249.54690258,0.00040586,120]
[421381558,1777529444000,-1000.0,0.000406,120]
[421381567,1777529444000,-250.37514435,0.000408,120]
[421381573,1777529444000,-2500.25,0.00040875,120]
[421381559,1777529444000,-2500.0,0.000406,120]
[421381561,1777529444000,-619.12,0.00040675,120]
[421381562,1777529444000,-2500.25,0.00040675,120]
[421381566,1777529444000,-500.0,0.00040775,45]
[421381564,1777529444000,-2500.25,0.00040775,120]
[421381565,1777529444000,-500.0,0.00040775,45]
[421381563,1777529444000,-619.12,0.00040775,120]
[421381569,1777529444000,-200.0,0.00040849,30]
[421381568,1777529444000,-16912.69,0.000408,7]
[421381571,1777529444000,-249.54690258,0.0004086,120]
[421381576,1777529444000,-500.0,0.00040899,30]
[421381570,1777529444000,-1115.157653,0.00040849,30]
[421381575,1777529444000,-200.0,0.00040899,30]
[421381560,1777529444000,-1114.29348816,0.00040613,112]
[421381603,1777529444000,-500.0,0.00041,45]
[421381659,1777529444000,-500.0,0.00041095,120]
[421381605,1777529444000,-2037.94640225,0.00041,120]
[421381638,1777529444000,-500.0,0.00041094,120]
[421381640,1777529444000,-500.0,0.00041094,120]
[421381641,1777529444000,-500.0,0.00041094,120]
[421381639,1777529444000,-500.0,0.00041094,120]
[421381642,1777529444000,-573.37467761,0.00041094,120]
[421381649,1777529444000,-500.0,0.00041095,120]
[421381644,1777529444000,-500.0,0.00041095,120]
[421381646,1777529444000,-500.0,0.00041095,120]
[421381645,1777529444000,-500.0,0.00041095,120]
[421381648,1777529444000,-500.0,0.00041095,120]
[421381643,1777529444000,-500.0,0.00041095,120]
[421381651,1777529444000,-500.0,0.00041095,120]
[421381631,1777529444000,-500.0,0.00041094,120]
[421381661,1777529444000,-500.0,0.00041095,120]
[421381662,1777529444000,-500.0,0.00041095,120]
[421381652,1777529444000,-500.0,0.00041095,120]
[421381653,1777529444000,-500.0,0.00041095,120]
[421381654,1777529444000,-500.0,0.00041095,120]
[421381657,1777529444000,-500.0,0.00041095,120]
[421381656,1777529444000,-500.0,0.00041095,120]
[421381655,1777529444000,-500.0,0.00041095,120]
[421381658,1777529444000,-500.0,0.00041095,120]
[421381660,1777529444000,-500.0,0.00041095,120]
[421381664,1777529444000,-500.0,0.00041095,120]
[421381606,1777529444000,-1845.57291916,0.00041,7]
[421381663,1777529444000,-500.0,0.00041095,120]
[421381650,1777529444000,-500.0,0.00041095,120]
[421381632,1777529444000,-500.0,0.00041094,120]
[421381647,1777529444000,-500.0,0.00041095,120]
[421381628,1777529444000,-500.0,0.00041094,120]
[421381610,1777529444000,-500.0,0.00041,45]
[421381634,1777529444000,-500.0,0.00041094,120]
[421381611,1777529444000,-500.0,0.00041,45]
[421381607,1777529444000,-500.0,0.00041,45]
[421381608,1777529444000,-500.0,0.00041,45]
[421381613,1777529444000,-500.0,0.00041,45]
[421381612,1777529444000,-500.0,0.00041,45]
[421381615,1777529444000,-5000.0,0.00041,120]
[421381624,1777529444000,-500.0,0.00041094,120]
[421381617,1777529444000,-1007.0,0.00041,120]
[421381618,1777529444000,-841.560946,0.00041,7]
[421381616,1777529444000,-224328.22498873,0.00041,120]
[421381625,1777529444000,-500.0,0.00041094,120]
[421381609,1777529444000,-500.0,0.00041,45]
[421381622,1777529444000,-2500.25,0.00041075,120]
[421381620,1777529444000,-2000.0,0.0004101,120]
[421381630,1777529444000,-500.0,0.00041094,120]
[421381633,1777529444000,-500.0,0.00041094,120]
[421381637,1777529444000,-500.0,0.00041094,120]
[421381636,1777529444000,-500.0,0.00041094,120]
[421381626,1777529444000,-500.0,0.00041094,120]
[421381629,1777529444000,-500.0,0.00041094,120]
[421381627,1777529444000,-500.0,0.00041094,120]
[421381623,1777529444000,-471.92053333,0.00041083,2]
[421381621,1777529444000,-619.12,0.00041075,120]
[421381635,1777529444000,-500.0,0.00041094,120]
[421381619,1777529444000,-187.60966327,0.00041,60]
[421381694,1777529445000,-500.0,0.00041095,120]
[421381699,1777529445000,-500.0,0.00041095,120]
[421381710,1777529445000,-858.26,0.00041095,120]
[421381703,1777529445000,-858.26,0.00041095,120]
[421381695,1777529445000,-500.0,0.00041095,120]
[421381701,1777529445000,-503.26489008,0.00041095,120]
[421381700,1777529445000,-500.0,0.00041095,120]
[421381692,1777529445000,-163.89542521,0.00041095,120]
[421381696,1777529445000,-500.0,0.00041095,120]
[421381708,1777529445000,-858.26,0.00041095,120]
[421381702,1777529445000,-858.26,0.00041095,120]
[421381704,1777529445000,-858.26,0.00041095,120]
[421381721,1777529445000,-638.24,0.00041095,120]
[421381707,1777529445000,-858.26,0.00041095,120]
[421381706,1777529445000,-858.26,0.00041095,120]
[421381709,1777529445000,-858.26,0.00041095,120]
[421381720,1777529445000,-638.24,0.00041095,120]
[421381722,1777529445000,-638.24,0.00041095,120]